[Event "10th Iberoamericano-ch 2024"]
[Site "Linares"]
[Date "2024.09.30"]
[Round "8.6"]
[White "Lopez Martinez, Josep Manuel"]
[Black "Garrido Outon, Alex"]
[Result "0-1"]
[ECO "D35"]
[WhiteElo "2448"]
[BlackElo "2448"]
[Annotator "TA"]
[PlyCount "176"]
[EventDate "2024.09.25"]
[EventType "swiss"]
[EventCountry "ESP"]
[SourceTitle "playchess.com"]
[Source "ChessBase"]
[SourceQuality "1"]
[TimeControl "5400+30"]

{[%evp 93,176,-471,-467,-640,-435,-640,-513,-675,-644,-561,-550,-1166,-1118,-1085,-879,-1494,-1421,-2222,-2112,-9384,-10516,-29944,-29945,-29956,-29942,-29946,-29937,-29971,-29975,-29974,-29976,-29979,-29980,-29980,-29981,-29983,-29984,-29984,-29954,-29955,-59,-59,-8,-59,-8,-59,-8,-59,-8,-59,-8,-75,-8,-85,0,-85,-8,-85,-85,-88,-8,-8,-8,-8,-8,-29976,-29977,-29977,-29978,-29978,-29979,-29979,-29977,-29977,-29978,-29978,-29979,-29979,-29980,-29980,-29980,-29980,-29981,-29981,-29982]} 1. d4 {[%emt 0:06:13]} d5 {[%emt 0:00:13]} 2. c4 {[%emt 0:00:46]} e6 {[%emt 0:00:07]} 3. Nc3 {[%emt 0:00:44]} Nf6 {[%emt 0:00:08]} 4. cxd5 {[%emt 0:01:03]} exd5 {[%emt 0:00:08]} 5. Bg5 {[%emt 0:00:39]} Bb4 {[%emt 0:00:36]} 6. e3 {[%emt 0:02:19]} h6 {[%emt 0:00:24]} 7. Bf4 {[%emt 0:00:27] D35: Queen's Gambit Declined: Exchange Variation.} Bf5 {[%emt 0:01:26]} 8. Bd3 {[%emt 0:00:16]} Bxd3 {[%emt 0:00:26]} 9. Qxd3 {[%emt 0:00:08]} O-O {[%emt 0:03:01]} 10. Nge2 {[%emt 0:00:32]} Nh5 {[%emt 0:02:37]} 11. Be5 {[%emt 0:00:09]} Nd7 {[%emt 0:00:27]} 12. h3 {[%emt 0:00:06]} Nhf6 {[%emt 0:00:06]} 13. Bh2 {[%emt 0:00:09]} c6 {[%emt 0:04:20]} 14. a3 {[%emt 0:03:22]} Be7 $146 {[%emt 0:02:20]} ({Predecessor:} 14... Ba5 15. O-O Re8 16. Rac1 Qe7 17. b4 Bd8 18. Ng3 Bc7 19. Nf5 Bxh2+ 20. Kxh2 Qe6 {1-0 Keymer,V (2690)-Carlsen,M (2835) FIDE World Cup 2023 (4.1)}) 15. O-O {[%emt 0:00:42]} Re8 {[%emt 0:00:25]} 16. Qc2 {[%emt 0:07:12]} a5 {[%emt 0:09:32]} 17. a4 {[%emt 0:06:51]} Nb8 {[%emt 0:03:55]} 18. Qb3 {[%emt 0:02:57]} Qd7 {[%emt 0:05:57]} 19. Rad1 {[%emt 0:03:08]} Na6 {[%emt 0:03:20]} 20. Kh1 {[%emt 0:00:11]} Nb4 {[%emt 0:02:33]} 21. Na2 {[%emt 0:01:21]} Bf8 {[%emt 0:13:12]} 22. Nf4 {[%emt 0:02:20]} Ne4 {[%emt 0:05:29]} 23. Nxb4 {[%emt 0:00:50]} axb4 {[%emt 0:00:06]} 24. Nd3 {[%emt 0:00:38]} Qd8 {[%emt 0:08:37]} 25. Qc2 {[%emt 0:05:44]} Qa5 {[%emt 0:00:59]} 26. b3 {[%emt 0:00:22]} Nc3 {[%emt 0:01:41]} 27. Ra1 {[%emt 0:00:12]} b6 {[%emt 0:02:22]} 28. Ne5 {[%emt 0:00:59]} Re6 {[%emt 0:11:06]} 29. f3 {[%emt 0:08:00]} Rae8 {[%emt 0:03:17]} 30. e4 {[%emt 0:00:38]} f6 {[%emt 0:01:40]} 31. Nd3 {[%emt 0:10:11]} dxe4 {[%emt 0:01:11]} 32. Nf4 {[%emt 0:00:07]} R6e7 {[%emt 0:02:43]} 33. Ng6 {[%emt 0:00:12]} Rd7 {[%emt 0:00:03]} 34. fxe4 {[%emt 0:00:23]} Rxe4 {[%emt 0:00:37]} 35. Nxf8 {[%emt 0:01:37]} Kxf8 {[%emt 0:00:02]} 36. Bg1 {[%emt 0:00:33]} Qd5 {[%emt 0:00:41]} 37. Rfe1 {[%emt 0:13:29]} Rde7 {[%emt 0:00:14]} 38. Rxe4 {[%emt 0:00:08]} Rxe4 {[%emt 0:00:10]} 39. Qd3 {[%emt 0:02:53]} Re2 {[%emt 0:02:47]} 40. Qg3 {[%emt 0:00:13]} Ne4 {[%emt 0:00:40]} 41. Qf3 {[%emt 0:00:46]} Nf2+ {[%emt 0:00:55]} 42. Bxf2 {[%emt 0:00:37]} Qxf3 {[%emt 0:00:05]} 43. gxf3 {[%emt 0:00:06]} Rxf2 {[%emt 0:00:03]} 44. Rc1 {[%emt 0:00:17]} Rxf3 {[%emt 0:00:43]} 45. Rxc6 {[%emt 0:00:04]} Rxh3+ {[%emt 0:00:05]} 46. Kg2 {[%emt 0:00:05]} Rxb3 {[%emt 0:00:05]} 47. Rxb6 {[%emt 0:00:03]} Kf7 {[%emt 0:02:05]} 48. Kf2 {[%emt 0:00:22]} h5 {[%emt 0:02:36]} 49. d5 {[%emt 0:00:18]} (49. Rb7+ $142 Kg6 50. Ke2) 49... Rd3 {[%emt 0:00:32]} 50. Rb7+ {[%emt 0:00:31]} Kg6 {[%emt 0:00:18]} 51. Rb5 {[%emt 0:00:04]} h4 {[%emt 0:06:01]} 52. Rxb4 {[%emt 0:00:15]} Rxd5 {[%emt 0:00:12]} 53. Rxh4 {[%emt 0:00:04]} Rd3 {[%emt 0:00:23]} 54. Rg4+ {[%emt 0:00:16]} Kf7 {[%emt 0:00:29]} 55. Rb4 {[%emt 0:00:04]} g5 {[%emt 0:00:55]} 56. Rb8 {[%emt 0:03:20]} Ra3 {[%emt 0:00:18]} 57. Ra8 {[%emt 0:00:03]} Kg6 {[%emt 0:00:13]} 58. a5 {[%emt 0:00:07]} Kf5 {[%emt 0:00:40]} 59. a6 {[%emt 0:00:05]} Kg4 {[%emt 0:00:52]} 60. a7 {[%emt 0:00:22]} f5 {[%emt 0:00:06]} 61. Ke2 {[%emt 0:01:12]} f4 {[%emt 0:00:07]} 62. Kf2 {[%emt 0:01:03]} Ra2+ {[%emt 0:00:05]} 63. Ke1 {[%emt 0:00:04]} f3 {[%emt 0:00:52]} 64. Kd1 {[%emt 0:01:09]} f2 {[%emt 0:02:22]} 65. Rf8 {[%emt 0:00:05]} Rxa7 {[%emt 0:00:03]} 66. Ke2 {[%emt 0:00:10]} Ra4 $2 {[%emt 0:01:01]} (66... f1=Q+ {mates} 67. Kxf1 Kg3 68. Rf6 g4 69. Rg6 Ra1+ 70. Ke2 Rg1 71. Rg7 Kh2 72. Rh7+ Kg2 73. Rh6 g3 74. Rg6 Rh1 75. Ke3 Rh8 76. Rg7 Re8+ 77. Kd2 Kf2 78. Rf7+ Kg1 79. Rb7 g2 80. Kd3 Rh8 81. Rb1+ Kh2 82. Kd4 g1=Q+ (82... g1=B+ 83. Kc3 $15) 83. Rxg1 Kxg1 84. Ke5 Kf2 85. Kd4 Rh5 86. Ke4 Ke2 87. Kf4 Kd3 88. Kg4 Ra5 89. Kf4 Rb5 90. Kf3 Rb4 91. Kf2 Rf4+ 92. Kg2 Ke2 93. Kg3 Re4 94. Kg2 Re3 95. Kg1 Kf3 96. Kf1 Kg3 97. Kg1 Re1#) 67. Kf1 $1 $15 {[%emt 0:00:25]} Ra2 {[%emt 0:00:23]} ({Black should try} 67... Ra1+ $15 68. Kxf2 Ra2+ 69. Kg1 Kg3) 68. Rf7 {[%emt 0:00:36]} (68. Rg8 $11) 68... Rb2 {[%emt 0:00:03]} (68... Kg3 69. Rf3+ Kg4 70. Re3 $11) ({Better is} 68... Ra1+ $15 69. Kxf2 Ra2+ 70. Kg1 Kg3) 69. Rf8 {[%emt 0:00:17]} (69. Rg7 $1 $11) 69... Rc2 {[%emt 0:00:04]} (69... Kg3 70. Rf3+ Kg4 71. Rg3+ Kh5 72. Rh3+ Kg4 73. Rg3+ Kf5 74. Rc3 $11) ({Black should play} 69... Rb1+ $15 70. Kxf2 Rb2+ 71. Kg1 Kg3) 70. Rf7 {[%emt 0:00:10]} (70. Rg8 $11) 70... Rd2 {[%emt 0:00:49]} ({Reject} 70... Kg3 71. Rf3+ Kg4 72. Rd3 $11) (70... Rc5 $15 71. Kxf2 Rc2+ 72. Kg1 Kg3) 71. Rf8 {[%emt 0:00:36]} (71. Rg7 $1 $11) 71... Rb2 {[%emt 0:00:03]} (71... Kg3 72. Rf3+ Kg4 73. Rg3+ Kh5 74. Rh3+ Kg4 75. Rg3+ Kf4 76. Rh3 $11) (71... Rd5 $15 72. Kxf2 Rd2+ 73. Kg1 Kg3) 72. Rf7 {[%emt 0:00:05]} (72. Rg8 $1 $11) 72... Ra2 {[%emt 0:01:21]} (72... Kg3 73. Rf3+ Kg4 74. Rd3 $11) (72... Rb1+ $17 73. Kxf2 Rb2+ 74. Kg1 Kg3) 73. Rf8 {[%emt 0:00:06]} (73. Rg7 $1 $11) 73... Rc2 {[%emt 0:00:28]} (73... Kg3 $6 74. Rf3+ Kh4 75. Rh3+ Kg4 76. Rg3+ Kf5 77. Rf3+ Ke4 78. Rb3 $11) 74. Rf7 {[%emt 0:00:06]} Kh5 {[%emt 0:00:04]} ({Don't play} 74... Kg3 $6 75. Rf3+ Kg4 76. Ra3 $11) (74... Rc1+ $17 75. Kxf2 Rc2+ 76. Kg1 Kg3) 75. Kg2 {[%emt 0:00:18]} (75. Rh7+ $11 {keeps the balance.} Kg4 76. Rd7) 75... Kh4 {[%emt 0:00:19]} 76. Kf1 {[%emt 0:07:03]} g4 {[%emt 0:02:33]} ({Much worse is} 76... Kg3 $6 77. Rf3+ Kh4 78. Rh3+ Kg4 79. Ra3 $11) (76... Rc1+ $17 77. Kxf2 Rc2+ 78. Kg1 Kg3) 77. Rh7+ $1 $11 {[%emt 0:00:22]} Kg5 {[%emt 0:00:15]} (77... Kg3 $5 78. Rh3+ $8 Kf4 79. Rf3+ Kg5 80. Rxf2 Rc3 $11) 78. Rg7+ $1 {[%emt 0:00:15]} Kh5 {[%emt 0:00:19]} 79. Rh7+ $2 {[%emt 0:00:46][%mdl 8192] [#]} (79. Rg8 $11) 79... Kg6 $1 {[%emt 0:00:12]} 80. Rh8 {[%emt 0:00:17] [#]} Kf7 $1 {[%emt 0:00:55]} 81. Ra8 {[%emt 0:06:01]} g3 {[%emt 0:00:19]} 82. Ra1 {[%emt 0:00:02]} Rc4 {[%emt 0:00:34]} 83. Kg2 {[%emt 0:00:19]} Rc3 {[%emt 0:00:20]} 84. Ra7+ {[%emt 0:02:02]} Ke6 {[%emt 0:00:11]} 85. Ra6+ {[%emt 0:00:04]} Kd5 {[%emt 0:00:34]} 86. Ra5+ {[%emt 0:00:05]} Kc4 {[%emt 0:00:17]} 87. Ra8 {[%emt 0:00:08]} Re3 {[%emt 0:00:06]} 88. Rc8+ {[%emt 0:00:36]} Kd5 {[%emt 0:00:07]} 0-1

[Event "10th Iberoamericano-ch 2024"]
[Site "Linares"]
[Date "2024.09.30"]
[Round "8.7"]
[White "Salinas Herrera, Pablo"]
[Black "Vallejo Pons, Francisco"]
[Result "0-1"]
[ECO "B40"]
[WhiteElo "2479"]
[BlackElo "2657"]
[Annotator "TA"]
[PlyCount "86"]
[EventDate "2024.09.25"]
[EventType "swiss"]
[EventCountry "ESP"]
[SourceTitle "playchess.com"]
[Source "ChessBase"]
[SourceQuality "1"]
[TimeControl "5400+30"]

{[%evp 9,86,4,17,6,16,5,9,0,0,0,0,0,0,0,11,-7,-11,-12,0,-14,-13,-35,-36,-33,-29,-59,0,0,3,0,0,16,19,0,0,-8,16,0,-4,0,-7,-19,0,-17,-20,-16,0,0,0,-22,-7,0,12,12,16,0,0,0,0,0,0,-40,0,-49,0,0,0,-92,-92,-93,-93,-435,-183,-175,-182,-189,-164,-29992,152]} 1. e4 {[%emt 0:01:28]} c5 {[%emt 0:00:07]} 2. Nf3 {[%emt 0:00:06]} e6 {[%emt 0:00:05]} 3. g3 {[%emt 0:00:23]} Nc6 {[%emt 0:00:20]} 4. Bg2 {[%emt 0:00:05]} Nf6 {[%emt 0:00:09]} 5. Qe2 {[%emt 0:00:07]} e5 {[%emt 0:00:38]} 6. O-O {[%emt 0:00:07]} Be7 {[%emt 0:00:08]} 7. Na3 {[%emt 0:02:08]} O-O {[%emt 0:02:00]} 8. Nc4 {[%emt 0:00:03] The position is equal.} d6 {[%emt 0:00:59]} 9. d3 {[%emt 0:00:06]} b5 {[%emt 0:01:46]} 10. Ne3 {[%emt 0:00:12]} Rb8 {[%emt 0:00:21]} 11. Nd2 {[%emt 0:06:31]} Re8 {[%emt 0:06:58]} 12. Kh1 {[%emt 0:02:53]} Bf8 {[%emt 0:06:55]} 13. Qd1 {[%emt 0:09:13]} Bb7 {[%emt 0:04:53]} 14. b3 {[%emt 0:02:53]} Nd4 {[%emt 0:04:23]} 15. a4 {[%emt 0:05:35]} b4 {[%emt 0:06:34]} 16. Bb2 {[%emt 0:01:58]} g6 {[%emt 0:01:11]} 17. f4 {[%emt 0:15:19]} h5 {[%emt 0:06:10]} (17... exf4 $1 $15 18. gxf4 d5) 18. Nf3 $11 {[%emt 0:06:35]} Bg7 {[%emt 0:05:18]} 19. f5 {[%emt 0:09:34]} Bh6 {[%emt 0:10:52]} 20. Bc1 {[%emt 0:00:11]} Kg7 {[%emt 0:01:34]} 21. Bd2 {[%emt 0:05:25]} Rh8 {[%emt 0:04:06]} 22. Nc4 {[%emt 0:08:02]} Nxf3 {[%emt 0:03:44]} 23. Qxf3 {[%emt 0:00:54]} g5 {[%emt 0:09:51]} 24. Qe2 {[%emt 0:00:05]} g4 {[%emt 0:01:22]} 25. Kg1 {[%emt 0:01:43]} Kf8 {[%emt 0:03:18]} 26. Be1 {[%emt 0:01:41]} Bg5 {[%emt 0:01:04]} 27. c3 {[%emt 0:00:32]} bxc3 {[%emt 0:01:01]} 28. Bxc3 {[%emt 0:00:07]} Ba6 {[%emt 0:00:25]} 29. Rab1 {[%emt 0:00:11]} h4 {[%emt 0:01:19]} 30. Rfd1 {[%emt 0:00:05]} hxg3 {[%emt 0:03:56]} 31. hxg3 {[%emt 0:00:05]} Rb7 {[%emt 0:02:09]} 32. Be1 {[%emt 0:05:24]} Qb8 {[%emt 0:00:38]} 33. Na5 {[%emt 0:00:25]} Rb6 {[%emt 0:00:27]} 34. Bf2 {[%emt 0:00:14]} Kg7 {[%emt 0:01:11]} 35. Qc2 {[%emt 0:00:10]} Rc8 {[%emt 0:02:23]} (35... Qg8 {is more complex.} 36. Nc4 Qh7 37. b4 Qh2+) 36. Bf1 {[%emt 0:00:07]} (36. Nc4 $11) 36... Rb4 {[%emt 0:00:49]} (36... d5 $1 $15 {was preferrable.} 37. exd5 Nxd5) 37. Nc4 {[%emt 0:03:43]} Rc6 {[%emt 0:02:19]} 38. Be1 {[%emt 0:01:14] [#]} (38. Bg2 $11 {remains equal.}) 38... Bxc4 $1 $17 {[%emt 0:00:34]} 39. bxc4 {[%emt 0:00:20]} Be3+ $1 {[%emt 0:02:11]} 40. Kh1 $2 {[%emt 0:04:02][%mdl 8192] [#] White is weak on the dark squares. This move loses the game for White.} (40. Bf2 $17 {was the crucial defense.} Bxf2+ 41. Kxf2) 40... Rc8 {[%emt 0:01:16]} 41. Kg2 $19 {[%emt 0:00:39] [#]} Rh8 $1 {[%emt 0:00:42][%cal Oh8h2] ( -> ...Rh2+!)} 42. Bf2 {[%emt 0:00:06]} Bxf2 {[%emt 0:01:01]} 43. Rxb4 $2 {[%emt 0:00:05] [#]} (43. Kxf2 $19 Rh1 44. Qa2) 43... Rh2+ $1 {[%emt 0:01:17][%mdl 32768] Weighted Error Value: White=0.35/Black=0.19 (very precise) .  Loses game:     	White=1     	---        Mistake:       	White=3     	Black=3      Inaccurate:     	White=2     	Black=1      OK:         	White=14    	Black=21     Best:        	White=2     	---        Strong:       	---       	Black=3     . Loss on time!?} (43... Qxb4 44. Kxf2 Qa3 45. Re1 $17) 0-1

[Event "10th Iberoamericano-ch 2024"]
[Site "Linares"]
[Date "2024.09.30"]
[Round "8.8"]
[White "Horcajuelo Rocamora, Martin"]
[Black "Henriquez Villagra, Cristobal"]
[Result "0-1"]
[ECO "E73"]
[WhiteElo "2394"]
[BlackElo "2604"]
[Annotator "RC"]
[PlyCount "128"]
[EventDate "2024.09.25"]
[EventType "swiss"]
[EventCountry "ESP"]
[SourceTitle "playchess.com"]
[Source "ChessBase"]
[SourceQuality "1"]
[TimeControl "5400+30"]

1. d4 {[%emt 0:00:02]} Nf6 {[%emt 0:03:44]} 2. c4 {[%emt 0:00:07]} g6 {[%emt 0:00:06]} 3. Nc3 {[%emt 0:00:23]} Bg7 {[%emt 0:00:06]} 4. e4 {[%emt 0:00:09]} d6 {[%emt 0:00:05]} 5. Be2 {[%emt 0:00:06]} O-O {[%emt 0:00:18]} 6. h3 {[%emt 0:00:08]} e5 {[%emt 0:01:25]} 7. d5 {[%emt 0:00:06]} Nbd7 {[%emt 0:02:46]} 8. Be3 {[%emt 0:00:24]} Nc5 {[%emt 0:00:14]} 9. Qc2 {[%emt 0:00:07]} a5 {[%emt 0:00:24]} 10. Nf3 {[%emt 0:00:59]} Ne8 {[%emt 0:03:34]} 11. O-O-O {[%emt 0:01:04]} f5 {[%emt 0:00:42]} 12. g4 {[%emt 0:00:57]} Na6 {[%emt 0:06:53]} 13. gxf5 {[%emt 0:10:35]} gxf5 {[%emt 0:00:06]} 14. exf5 {[%emt 0:00:12]} Bxf5 {[%emt 0:00:07]} 15. Qd2 {[%emt 0:00:09]} a4 {[%emt 0:01:14]} 16. Ng5 {[%emt 0:09:33]} a3 {[%emt 0:03:36]} 17. b3 {[%emt 0:04:26]} Nc5 {[%emt 0:00:09]} 18. Rdg1 {[%emt 0:03:25]} Kh8 {[%emt 0:11:12]} 19. Bg4 {[%emt 0:14:46]} e4 {[%emt 0:11:48]} 20. Bxf5 {[%emt 0:06:17]} Rxf5 {[%emt 0:00:10]} 21. Ngxe4 {[%emt 0:02:09]} Nxe4 {[%emt 0:02:05]} 22. Nxe4 {[%emt 0:00:05]} Qe7 {[%emt 0:00:45]} 23. Qc2 {[%emt 0:04:49]} Qe5 {[%emt 0:07:08]} 24. Rg5 {[%emt 0:02:47]} b5 {[%emt 0:08:28]} 25. Rxf5 {[%emt 0:03:05]} Qxf5 {[%emt 0:00:06]} 26. Ng5 {[%emt 0:00:26]} Bb2+ {[%emt 0:01:22]} 27. Kb1 {[%emt 0:02:02]} Ng7 {[%emt 0:00:55]} 28. cxb5 {[%emt 0:04:31]} Rb8 {[%emt 0:01:07]} 29. Rg1 {[%emt 0:06:58]} Qxc2+ {[%emt 0:01:04]} 30. Kxc2 {[%emt 0:00:05]} Rxb5 {[%emt 0:00:12]} 31. Rd1 {[%emt 0:02:20]} Kg8 {[%emt 0:01:21]} 32. Ne4 {[%emt 0:04:17]} Nf5 {[%emt 0:01:44]} 33. Nc3 {[%emt 0:02:57]} Rb4 {[%emt 0:06:16]} 34. Rg1+ {[%emt 0:01:54]} Kf7 {[%emt 0:00:17]} 35. Rg4 {[%emt 0:00:08]} Nxe3+ {[%emt 0:14:37]} 36. fxe3 {[%emt 0:00:10]} Rxg4 {[%emt 0:00:15]} 37. hxg4 {[%emt 0:00:05]} Bxc3 {[%emt 0:00:03]} 38. Kxc3 {[%emt 0:00:05]} Kf6 {[%emt 0:00:03]} 39. e4 {[%emt 0:02:17]} Ke5 {[%emt 0:05:25]} 40. Kd3 {[%emt 0:00:04]} Kf4 {[%emt 0:00:11]} 41. b4 {[%emt 0:00:32]} Kxg4 {[%emt 0:00:05]} 42. e5 {[%emt 0:00:06]} dxe5 {[%emt 0:00:09]} 43. d6 {[%emt 0:00:18]} cxd6 {[%emt 0:00:06]} 44. b5 {[%emt 0:00:04]} Kf3 {[%emt 0:00:31]} 45. b6 {[%emt 0:00:15]} e4+ {[%emt 0:00:04]} 46. Kd2 {[%emt 0:06:20]} Kf2 {[%emt 0:00:05]} 47. b7 {[%emt 0:00:02]} e3+ {[%emt 0:00:04]} 48. Kc2 {[%emt 0:00:12]} e2 {[%emt 0:00:04]} 49. b8=Q {[%emt 0:00:06]} e1=Q {[%emt 0:00:05]} 50. Qf8+ {[%emt 0:00:08]} Kg1 {[%emt 0:01:34]} 51. Qg7+ {[%emt 0:05:12]} Kf1 {[%emt 0:00:07]} 52. Qxh7 {[%emt 0:00:05]} Qe2+ {[%emt 0:07:24]} 53. Kb3 {[%emt 0:00:48]} Qf3+ {[%emt 0:01:33]} 54. Kb4 {[%emt 0:00:26]} d5 {[%emt 0:00:07]} 55. Qb1+ {[%emt 0:02:12]} Ke2 {[%emt 0:00:29]} 56. Kc5 {[%emt 0:02:32]} Kd2 {[%emt 0:00:11]} 57. Qh7 {[%emt 0:03:44]} Kc1 {[%emt 0:01:34]} 58. Qh2 {[%emt 0:00:21]} Qd3 {[%emt 0:00:59]} 59. Qg1+ {[%emt 0:00:55]} Kb2 {[%emt 0:00:06]} 60. Kb4 {[%emt 0:00:05]} Qc3+ {[%emt 0:00:58]} 61. Ka4 {[%emt 0:00:04]} d4 {[%emt 0:00:12]} 62. Qf1 {[%emt 0:00:59]} d3 {[%emt 0:00:08]} 63. Kb5 {[%emt 0:00:11]} d2 {[%emt 0:00:07]} 64. Qe2 {[%emt 0:00:18]} Kc1 {[%emt 0:00:14]} 0-1

[Event "10th Iberoamericano-ch 2024"]
[Site "Linares"]
[Date "2024.09.30"]
[Round "8.9"]
[White "Oro, Faustino"]
[Black "Sos Andreu, Eric"]
[Result "1-0"]
[ECO "D38"]
[WhiteElo "2434"]
[BlackElo "2359"]
[Annotator "TA"]
[PlyCount "79"]
[EventDate "2024.09.25"]
[EventType "swiss"]
[EventCountry "ESP"]
[SourceTitle "playchess.com"]
[Source "ChessBase"]
[SourceQuality "1"]
[TimeControl "5400+30"]

{[%evp 13,79,2,11,11,11,7,7,0,10,23,22,34,50,-37,-41,-31,-35,-33,-27,-28,-24,-46,-36,-27,-26,-82,0,0,23,0,0,0,0,0,0,0,34,48,40,31,26,17,73,28,22,0,0,0,89,37,139,14,37,33,66,88,102,59,283,214,29955,29947,5804,1089,29992,29993,29993,29992]} 1. Nf3 {[%emt 0:00:03]} d5 {[%emt 0:01:25]} 2. d4 {[%emt 0:00:07]} Nf6 {[%emt 0:00:20]} 3. c4 {[%emt 0:00:07]} e6 {[%emt 0:00:07]} 4. Nc3 {[%emt 0:00:07]} Bb4 {[%emt 0:00:11]} 5. Qa4+ {[%emt 0:00:09]} Nc6 {[%emt 0:00:05]} 6. a3 {[%emt 0:00:05]} Bxc3+ {[%emt 0:03:08]} 7. bxc3 {[%emt 0:00:00]} Bd7 {[%emt 0:03:58][%cal Oc6d4]} 8. cxd5 {[%emt 0:02:16]} exd5 {[%emt 0:04:02]} 9. Bg5 {[%emt 0:02:04][%cal Bc1g5,Bg5h4,Bh4g3][%mdl 32]} h6 {[%emt 0:03:02]} 10. Bh4 {[%emt 0:02:05] The position is equal.} g5 {[%emt 0:04:55]} 11. Bg3 {[%emt 0:00:17]} Ne4 {[%emt 0:00:48][%cal Of7f5] ...f5! is the strong threat.} 12. Qb3 {[%emt 0:04:28][%csl LRb7,LRd5]} Bc8 {[%emt 0:01:26]} 13. Ne5 {[%emt 0:25:01]} (13. e3 $14) 13... Nxe5 {[%emt 0:03:17]} 14. Bxe5 {[%emt 0:00:27]} f6 {[%emt 0:00:46]} 15. f3 {[%emt 0:02:17]} fxe5 {[%emt 0:04:11]} 16. fxe4 {[%emt 0:00:02]} exd4 {[%emt 0:06:22]} 17. exd5 {[%emt 0:10:08]} dxc3 {[%emt 0:06:19]} 18. Qxc3 {[%emt 0:01:41]} O-O {[%emt 0:00:11]} 19. e4 {[%emt 0:03:02]} (19. O-O-O $11) 19... Qe7 {[%emt 0:05:12]} (19... Bg4 $17 {Strongly threatening ...Qd6.} 20. e5 Rf4 (20... Qxd5 $2 21. Bc4 $18)) 20. Bd3 $11 {[%emt 0:05:06]} Bg4 {[%emt 0:03:25][%cal Bc8g4,Bg4h5,Bh5g6][%mdl 32]} 21. h3 {[%emt 0:03:09]} (21. Rb1 {seems wilder.} b6 22. Rf1 Qd6 23. g3) 21... Bh5 {[%emt 0:00:13]} 22. g4 {[%emt 0:00:42]} Bg6 {[%emt 0:00:31]} 23. O-O-O $1 {[%emt 0:01:05]} Rf4 {[%emt 0:15:24][%cal Oa8f8]} 24. Rhe1 {[%emt 0:05:01]} Re8 {[%emt 0:03:30][%cal Oe7e5]} 25. e5 {[%emt 0:01:55]} Bxd3 {[%emt 0:00:09]} 26. Rxd3 {[%emt 0:00:17]} b5 {[%emt 0:00:12] ...Rc4 would now be deadly.} 27. Kb1 {[%emt 0:01:59]} Rc4 {[%emt 0:01:29]} (27... b4 $11 {keeps the balance.} 28. Qb3 Kh8) 28. Qb2 {[%emt 0:02:29]} Qh7 {[%emt 0:04:34]} 29. Qb3 {[%emt 0:06:45][%cal Ob1a2]} a5 {[%emt 0:04:11] And now ...a4 would win.} 30. Ree3 {[%emt 0:01:28]} Qf7 {[%emt 0:01:23]} (30... Rf8 $11) 31. Rf3 {[%emt 0:00:59]} (31. Qxb5 Qf1+ 32. Ka2 Rc2+ 33. Kb3 c6 34. dxc6 (34. Qxa5 $2 Qb1+ 35. Ka4 Rc4+) 34... Qc1 35. Qd5+ (35. Qxa5 $2 Rb2+ 36. Ka4 Qxc6+) 35... Kh8 $19) (31. e6 $16 Qf2 32. Rd1 (32. Qxb5 $2 Qf1+ 33. Ka2 Rc2+ 34. Kb3 c6 $19)) 31... Qe7 {[%emt 0:01:24]} (31... Rf4 $14) 32. d6 {[%emt 0:03:17]} (32. Qxb5 $16 Rf4 (32... Rc5 33. Qb3 $16) 33. e6 (33. Qxa5 Qxe5 34. Rxf4 gxf4 $11)) 32... cxd6 {[%emt 0:02:14]} 33. exd6 {[%emt 0:00:10][%cal Be5d6,Bd6d7][%mdl 32]} (33. Qxb5 Rec8 34. Rf2 (34. exd6 Qe1+ 35. Ka2 Rc2+) (34. Rxd6 $2 Rc1+ 35. Kb2 R8c2+ 36. Kb3 Rb1+ 37. Kxc2 Rxb5 $19) 34... dxe5 (34... Qxe5 35. Qd5+ Qxd5 36. Rxd5 $15) 35. Qxa5 h5 $17) 33... Qe4 {[%emt 0:09:18]} 34. d7 $1 $36 {[%emt 0:01:28][%cal Of3e3][%mdl 2048] White wants to mate with Rfe3! White is really pushing.} (34. Qxb5 Qe1+ 35. Ka2 Rc2+) 34... Rd8 {[%emt 0:00:04][%cal Be8d8,Bd8d7,Bd7c7][%mdl 32]} 35. Rfe3 {[%emt 0:00:33]} ({Reject} 35. Qxb5 $6 Qe1+ 36. Ka2 Qe2+ 37. Kb1 (37. Qb2 $2 Rc2 $19) 37... Qe1+ 38. Ka2 Qe2+ 39. Kb1 (39. Qb2 $2 Rc2 $19) 39... Qe1+ $11) 35... Qc6 {[%emt 0:00:03] [#] Black cannot hold the game after this.} ({Black should play} 35... Qh1+ $14 36. Qd1 Qxd1+ 37. Rxd1 Kf7) 36. Qd1 $1 $18 {[%emt 0:00:24]} Re4 $2 {[%emt 0:01:59] [#]} (36... Kf8 $18 37. Qd2 Qg6) 37. Qf3 $1 {[%emt 0:00:43]} Rxd7 {[%emt 0:02:40]} 38. Rxe4 {[%emt 0:00:21]} (38. Rxd7 $142 Qxd7 39. Rxe4 (39. Qxe4 Qd1+ 40. Ka2 Qd2+ 41. Kb1 Qd1+ 42. Kb2 Qd2+ 43. Qc2 Qxe3 $11)) 38... Rc7 {[%emt 0:00:08]} 39. Rd8+ {[%emt 0:00:10]} Kh7 {[%emt 0:00:18] [#]} 40. Re7+ $3 {[%emt 0:00:14][%mdl 512] Weighted Error Value: White=0.20 (precise) /Black=0.61.  Loses game:     	---       	Black=1      Mistake:       	White=4     	Black=5      Inaccurate:     	White=1     	Black=2      OK:         	White=6     	Black=9      Best:        	White=1     	Black=3      Strong:       	White=4     	---} 1-0